Cogmind - Beta 10.2 @@@ ROGUE MODE // 2021.08.25 @ 06:08:11 Player: EgoOrb Result: Destroyed by L-31 Rogue with Katana Performance ------------- Evolutions (2) 1000 Regions Visited (4) 800 Robots Destroyed (1) 5 Value Destroyed (16) 16 Prototype IDs (0) 0 Alien Tech Used (0) 0 Bonus (0) 0 TOTAL SCORE: 1821 Bonus ------- None Cogmind --------- Core Integrity 0/550 Matter 247/300 Energy 99/100 System Corruption 0% Temperature Cool (0) Movement Rolling (120) Ox2 Location -8/Materials Parts ------- > --- POWER (2) -------- (None) > --- PROPULSION (2) --- Compact Wheel > --- UTILITY (4) ------ Small Storage Unit Large Storage Unit Large Storage Unit Improved Terrain Scan Processor > --- WEAPON (3) ------- (None) > --- INVENTORY (18) --- Aluminum Leg Wheel Tractor Beam Peak State ------------ > --- POWER ------------ Ion Engine > --- PROPULSION ------- Aluminum Leg Titanium Leg > --- UTILITY ---------- Large Storage Unit Large Storage Unit Shield Generator > --- WEAPON ----------- Light EM Pulse Cannon > --- INVENTORY -------- Aluminum Leg Wheel Compact Wheel Compact Wheel Small Storage Unit Improved Terrain Scan Processor Tractor Beam [Rating: 11] Favorites ----------- Power Ion Engine Engine Ion Engine Propulsion Aluminum Leg Leg Aluminum Leg Wheel Compact Wheel Utility Large Storage Unit Device Shield Generator Storage Large Storage Unit Processor Improved Terrain Scan Processor Weapon Small Laser Energy Gun Small Laser Energy Cannon Light EM Pulse Cannon Build | -11 -10 -9 -9 -8 ------- Run | Scr Mat Mat Min Mat Slots Evolved 4 | . . 2 . 2 Power 1 | . . 1 . . Propulsion . | . . . . . Utility 2 | . . . . 2 Weapon 1 | . . 1 . . Parts Attached 18 | 6 2 2 . 8 Power 1 | 1 . . . . Engine 1 | 1 . . . . Core . | . . . . . Reactor . | . . . . . Propulsion 5 | 2 . . . 3 Treads . | . . . . . Leg 3 | 2 . . . 1 Wheel 2 | . . . . 2 Hover . | . . . . . Flight . | . . . . . Utility 8 | 1 2 1 . 4 Device 3 | . 1 1 . 1 Storage 4 | 1 1 . . 2 Processor 1 | . . . . 1 Hackware . | . . . . . Protection . | . . . . . Artifact . | . . . . . Weapon 4 | 2 . 1 . 1 Energy Gun 3 | 2 . 1 . . Energy Cannon 1 | . . . . 1 Ballistic Gun . | . . . . . Ballistic Cannon . | . . . . . Launcher . | . . . . . Special Weapon . | . . . . . Impact Weapon . | . . . . . Slashing Weapon . | . . . . . Piercing Weapon . | . . . . . Special Melee Weapon . | . . . . . Unidentified Prototypes . | . . . . . Parts Lost 10 | . . . 3 7 Power 1 | . . . . 1 Propulsion 3 | . . . . 3 Utility 2 | . . . 1 1 Weapon 4 | . . . 2 2 Highest Loss Streak 6 | . . . 3 6 Average Slot Usage (%) 83 | . 99 88 82 54 Engine 10 | . 14 11 11 5 Leg 22 | . 28 22 22 12 Wheel 1 | . . . . 4 Device 10 | . 13 11 10 5 Storage 14 | . 13 11 11 19 Energy Gun 23 | . 28 33 28 4 Naked Turns . | . . . . . Heaviest Build 43 | 12 25 27 27 43 Greatest Support 32 | 20 20 20 20 32 Greatest Overweight (x) 2 | 1 1 1 1 2 Average Overweight (x) . | . . 1 1 1 Largest Inventory Capacity 18 | 6 10 10 10 18 Average Capacity 10 | 5 8 10 10 16 Most Carried 8 | 4 6 7 7 8 Average Carried 5 | 1 5 6 7 5 Final Capacity 18 | 6 10 10 10 18 Final Carried 7 | 3 6 7 7 3 Class Distribution -------------------- 75% | Mutant 24% | Tank Dominant Class ---------------- Mutant | -10/Materials Tank | -9/Materials Tank | -9/Mines Mutant | -8/Materials Resources | -11 -10 -9 -9 -8 ----------- Run | Scr Mat Mat Min Mat Matter Collected 269 | 239 13 . . 17 Remotely 13 | . 13 . . . Salvage Created 13 | . 13 . . . Parts 1 | . 1 . . . Haulers Intercepted . | . . . . . Recyclers Shooed . | . . . . . Parts Field Recycled . | . . . . . Retrieved Matter . | . . . . . Parts Self-Destructed . | . . . . . Prevented . | . . . . . Kills | -11 -10 -9 -9 -8 ------- Run | Scr Mat Mat Min Mat Combat Hostiles Destroyed . | . . . . . Classes Destroyed 1 | . 1 . . . Operator 1 | . 1 . . . Best Kill Streak 1 | . 1 . . . Combat Bots Only . | . . . . . Max Kills in Single Turn 1 | . 1 . . . Gunslinging . | . . . . . Exploded . | . . . . . Melee . | . . . . . Uniques/NPCs Destroyed . | . . . . . Combat | -11 -10 -9 -9 -8 -------- Run | Scr Mat Mat Min Mat Damage Taken 1576 | . . . 380 1196 Core 629 | . . . 76 553 Absorbed by Shields 120 | . . . 78 42 Core Remaining (%) 93 | 100 100 . 81 . Volleys Fired 8 | . 1 1 2 4 Largest 3 | . 2 3 3 1 Hottest 120 | . 80 120 120 56 Shots Fired 15 | . 2 3 6 4 Gun 11 | . 2 3 6 . Cannon 4 | . . . . 4 Launcher . | . . . . . Special . | . . . . . Kinetic . | . . . . . Thermal 7 | . 1 2 4 . Explosive . | . . . . . Electromagnetic 8 | . 1 1 2 4 Robot Hit Streak 4 | . 1 3 4 4 Robot Miss Streak 2 | . . 1 2 . Penetration Max . | . . . . . Secondary Targets . | . . . . . Shots Hit Robots 11 | . 1 2 4 4 Core Hits 4 | . 1 . 3 . Critical Hits . | . . . . . Critical Kills . | . . . . . Critical Parts Destroyed . | . . . . . Melee Attacks . | . . . . . Impact . | . . . . . Slashing . | . . . . . Piercing . | . . . . . Sneak Attacks . | . . . . . Combat Hostiles . | . . . . . Follow-up Attacks . | . . . . . Damage Inflicted 193 | . 15 32 58 88 Guns 105 | . 15 32 58 . Cannons 85 | . . . . 85 Explosions . | . . . . . Melee . | . . . . . Ramming 3 | . . . . 3 Kinetic . | . . . . . Thermal 41 | . . 10 31 . Explosive . | . . . . . Electromagnetic 149 | . 15 22 27 85 Impact . | . . . . . Slashing . | . . . . . Piercing . | . . . . . Highest Corruption . | . . . . . Average Corruption . | . . . . . Corruption Purged . | . . . . . Overload Shots . | . . . . . Overflow Damage . | . . . . . Projectiles . | . . . . . Explosions . | . . . . . Melee . | . . . . . Knockbacks . | . . . . . Impact . | . . . . . Kinetic . | . . . . . Secondary . | . . . . . Self-Inflicted Damage 1 | . . . . 1 Shots . | . . . . . Rammed 2 | . . . . 2 Targets Rammed 2 | . . . . 2 Kicked . | . . . . . Crushed . | . . . . . Highest Temperature 115 | . 18 51 115 19 Average Temperature 36 | . 12 27 61 9 Received Heat Transfer 500 | . . . 200 300 Siege Activations . | . . . . . Robots Corrupted . | . . . . . Combat Hostiles . | . . . . . Parts Fried . | . . . . . Impact Corruptions . | . . . . . Robots Melted . | . . . . . Combat Hostiles . | . . . . . Parts Melted . | . . . . . Heat Transferred 100 | . . 25 75 . Parts Sabotaged . | . . . . . Parts Stolen . | . . . . . Parts Stripped . | . . . . . Power Chain Reactions . | . . . . . Missiles Intercepted . | . . . . . Alert | -11 -10 -9 -9 -8 ------- Run | Scr Mat Mat Min Mat Peak Influence 72 | . 65 72 27 35 Initial 27 | . . 27 27 . Average 25 | . 32 41 22 12 Maximum Alert Level . | . . . . . Low Security (%) 100 | 100 100 100 100 100 Level 1 . | . . . . . Level 2 . | . . . . . Level 3 . | . . . . . Level 4 . | . . . . . Level 5 . | . . . . . High Security . | . . . . . Max Security . | . . . . . Squads Dispatched 3 | . 1 . . 2 Investigation . | . . . . . Extermination . | . . . . . Reinforcement 3 | . 1 . . 2 Assault . | . . . . . Garrison . | . . . . . Intercept . | . . . . . Construction Impeded . | . . . . . Haulers Reinforced . | . . . . . Stealth | -11 -10 -9 -9 -8 --------- Run | Scr Mat Mat Min Mat Distress Signals 3 | . . 1 . 2 Communications Jammed . | . . . . . Distress Signals . | . . . . . Times Spotted 25 | . 4 3 3 15 Peak Tracking Total 15 | . 1 4 3 15 Tactical Retreats 3 | . . 1 . 2 Traps | -11 -10 -9 -9 -8 ------- Run | Scr Mat Mat Min Mat Traps Triggered . | . . . . . Indirectly . | . . . . . Trap Hack Attempts . | . . . . . Triggered . | . . . . . Disarmed . | . . . . . Reprogrammed . | . . . . . Reused . | . . . . . Traps Extracted . | . . . . . Installed . | . . . . . Triggered . | . . . . . Machines | -11 -10 -9 -9 -8 ---------- Run | Scr Mat Mat Min Mat Machines Disabled . | . . . . . Max in Single Turn . | . . . . . Machines Sabotaged . | . . . . . Garrisons Compromised . | . . . . . Overloaded Fab Kills . | . . . . . Fab Network Shutdowns . | . . . . . Hacking | -11 -10 -9 -9 -8 --------- Run | Scr Mat Mat Min Mat Machines Accessed 2 | . 1 . . 1 Terminals 2 | . 1 . . 1 Fabricators . | . . . . . Repair Stations . | . . . . . Recycling Units . | . . . . . Scanalyzers . | . . . . . Garrison Access . | . . . . . Total Hacks 3 | . 2 . . 1 Successful . | . . . . . Failed 3 | . 2 . . 1 Catastrophic 1 | . . . . 1 Database Lockouts . | . . . . . Manual 5 | . 4 . . 1 Terminals 3 | . 2 . . 1 Fabricators . | . . . . . Repair Stations . | . . . . . Recycling Units . | . . . . . Scanalyzers . | . . . . . Garrison Access . | . . . . . Terminal Hacks . | . . . . . Fabricator Hacks . | . . . . . Repair Station Hacks . | . . . . . Recycling Unit Hacks . | . . . . . Scanalyzer . | . . . . . Garrison Access Hacks . | . . . . . Unauthorized Hacks . | . . . . . Terminals . | . . . . . Fabricators . | . . . . . Repair Stations . | . . . . . Recycling Units . | . . . . . Scanalyzers . | . . . . . Garrison Access . | . . . . . Data Cores Recovered 1 | . 1 . . . Used . | . . . . . Hacking Detections 2 | . 1 . . 1 Full Trace Events . | . . . . . Feedback Events . | . . . . . Feedback Blocked . | . . . . . Robot Schematics Acquired . | . . . . . Robots Built . | . . . . . Matter . | . . . . . Time . | . . . . . Total Robot Build Rating . | . . . . . Part Schematics Acquired . | . . . . . Parts Built . | . . . . . Matter . | . . . . . Time . | . . . . . Total Part Build Rating . | . . . . . Parts Repaired . | . . . . . Time . | . . . . . Parts Recycled . | . . . . . Recycled Matter . | . . . . . Retrieved Matter . | . . . . . Retrieved Components . | . . . . . Parts Scanalyzed . | . . . . . Part Schematics Acquired . | . . . . . Parts Damaged . | . . . . . Bothacking | -11 -10 -9 -9 -8 ------------ Run | Scr Mat Mat Min Mat Used RIF Installer . | . . . . . Robots Hacked . | . . . . . Non-combat . | . . . . . Combat . | . . . . . Robot Hacks Applied . | . . . . . Relay Couplers Released . | . . . . . Robots Rewired . | . . . . . Allies Hacked . | . . . . . Hacks Repelled . | . . . . . Allies | -11 -10 -9 -9 -8 -------- Run | Scr Mat Mat Min Mat Total Allies . | . . . . . Largest Group . | . . . . . Highest-Rated Group . | . . . . . Highest-Rated Ally . | . . . . . Total Orders . | . . . . . Ally Attacks . | . . . . . Total Damage . | . . . . . Kills . | . . . . . Allies Corrupted . | . . . . . Allies Melted . | . . . . . Intel | -11 -10 -9 -9 -8 ------- Run | Scr Mat Mat Min Mat Robot Analysis Total . | . . . . . Derelict Logs Recovered . | . . . . . Drone Launches . | . . . . . Drone Recoveries . | . . . . . Exploration | -11 -10 -9 -9 -8 ------------- Run | Scr Mat Mat Min Mat Turns Passed 777 | 60 311 110 119 177 Spaces Moved 501 | 44 209 69 73 106 Core 10 | 10 . . . . Treads . | . . . . . Legs 447 | 34 209 69 73 62 Wheels 44 | . . . . 44 Hover . | . . . . . Flight . | . . . . . Fastest Speed 50 | 50 120 150 150 100 Average Speed 140 | 104 141 150 150 142 Slowest Speed 190 | 150 150 150 150 190 Overloaded Moves . | . . . . . Propulsion Burnouts . | . . . . . Robots Hopped . | . . . . . Cave-ins Triggered . | . . . . . Exploration Rate (%) 15 | 4 28 12 19 15 Regions Visited 4 Branch Regions 1 Pre-discovered Areas . | . . . . . Known Exits Taken . | . . . . . Unknown Exits Taken 4 | 1 1 1 1 . Scrap Searched . | . . . . . Spaces Dug . | . . . . . Terrain Destroyed . | . . . . . Melee . | . . . . . Projectile . | . . . . . AOE . | . . . . . Terrain Rammed . | . . . . . Walls Destroyed . | . . . . . Machines Disabled . | . . . . . Actions | -11 -10 -9 -9 -8 --------- Run | Scr Mat Mat Min Mat Total 559 | 58 225 74 78 124 Wait 10 | . 6 . 4 . Move 497 | 43 208 68 72 106 Hop . | . . . . . Pick Up 20 | 9 6 2 . 3 Fast Attach . | . . . . . Attach 18 | 6 2 2 . 8 Detach 2 | . . 1 . 1 Swap . | . . . . . Drop 2 | . 2 . . . Fire 8 | . 1 1 2 4 Melee . | . . . . . Ram 1 | . . . . 1 Kick 1 | . . . . 1 Crush . | . . . . . Escape Stasis . | . . . . . Rewire . | . . . . . Trap . | . . . . . Miscellaneous . | . . . . . Route ------- -11/Scrapyard -10/Materials -9/Materials -9/Mines -8/Materials History --------- Turn | Location | Event 3 | -11/Scrapyard | Discovered new exit (range 15) 61 | -11/Scrapyard | Entered Materials 313 | -10/Materials | Build established: Mutant 364 | -10/Materials | Discovered new exit (range 5) 372 | -10/Materials | Entered another Materials area 372 | -9/Materials | Evolved 2 slots: Power x1, Weapon x1 463 | -9/Materials | Discovered new exit (range 13) 482 | -9/Materials | Entered Mines 529 | -9/Mines | Discovered new exit (range 14) 601 | -9/Mines | Entered Materials 601 | -8/Materials | Evolved 2 slots: Utility x2 623 | -8/Materials | Lost 3 parts (1u2w) 728 | -8/Materials | Core integrity fell below 50% 752 | -8/Materials | Lost 6 parts (1p2n1u2w) 759 | -8/Materials | Core integrity fell below 20% 778 | -8/Materials | Destroyed by L-31 Rogue with Katana Last Messages --------------- 00717_ G-47 Trooper misfires. 00718_ Acquired 17 matter. 00718_ Penetrated by Slug. 00719_ K-01 Serf collects debris. 00720_ Slammed into Y-45 Defender. 00720_ Lgt. EM Pulse Cannon destroyed. 00721_ Titanium Leg destroyed. 00722_ Slammed into K-01 Serf. 00727_ Penetrated by Slug. 00733_ Slug penetrates Wall. 00741_ W-25 Informer sends out distress signal. 00749_ U-05 Engineer lays Concrete. 00751_ W-25 Informer sends out distress signal. 00751_ K-01 Serf collects debris. 00751_ Slug penetrates Wall. 00753_ K-01 Serf collects debris. 00756_ Com. Wheel destroyed. 00760_ Penetrated by Slug. 00763_ Slug penetrates Wall. 00764_ Penetrated by Slug. Map ----- +----------------------------------------------------+ | ?????????????????????????????????????????????????? | | ?????????????????????????????????????????????????? | | ?????????????????????????????????????????????????? | | ?????????????????????????????????????????????????? | | ?????????????????????????????????????????????????? | | ?????????????????????????????????????????????????? | | ?????????????????????????????????????????????????? | | ?????????????????????????????????????????????????? | | ?????????????????????????????????????????????????? | | ?????????????????????????????????????????????????? | | ?????????????????????????????????????????????????? | | ?????????????????????????????????????????????????? | | ?????????????????????????????????????????????????? | | ?????????????????????????????????????????????????? | | ?????????????????????????????????????????????????? | | ?????????????????????????????????????????????????? | | ?????????????????????????????????????????????????? | | ??????????? ???????????????????????????????????? | | ??????????# #??????????????????????????????????? | | ??????????# #??????????????????????????????????? | | ??????????+ #??????????????????????????????????? | | ??????????# #??????????????????????????????????? | | ??????????# #??????????????????? #?????????????? | | ########### #??###########+### #####?????????? | | T #??# k g ????????? | | ? #??# @ l????????? | | ??? !! #??# l g ????????? | | ????# !! #??# ############+####???????????? | | ????# #??# #???????????????????????????? | | ##### #??# #???????????????????????????? | | # #### #???????????????????????????? | | = #???????????????????????????? | | #???????????????????????????? | | #???????????????????????????? | | ##################???????????????????????????? | | ##????????????????????????????????????????????? | | #?????????????????????????????????????????????? | | #?????????????????????????????????????????????? | | #?????????????????????????????????????????????? | | ######????????????????????????????????????????? | | +????????????????????????????????????????? | | ######????????????????????????????????????????? | | ###########+###????#??????????????????????????? | | # # #### ???????????????????????????? | | # " # ????????????????????????????? | | / # ?????????????????????????????? | | # # ! ??????????????????????????????? | | ######### #???????????????????????????????? | | #?######## ########?????????????????????????? | | #?# # # #?????????????????????????? | +----------------------------------------------------+ Best States ------------- Heat Dissipation 31 Energy Generation 10 Energy Capacity 250 Matter Stores 279 Matter Capacity 300 Sight Range 16 Terrain Scan Density 110 Evasion (%) 50 Item Schematics ----------------- None Robot Schematics ------------------ None Fabricated ------------ Nothing Alien Tech Used ----------------- None Achievements -------------- None Challenges ------------ None Game ------ Seed TransportRecyclingCharger Manual? 0 Play Time 00:13:21 Cumulative 6.0 hours Start 2021.08.25 @ 05:47:54 End 2021.08.25 @ 06:08:11 Sessions 1 Manual Loads 0 Difficulty Rogue Special Mode None Game No. 18 Rogue 18 Adventurer 0 Explorer 0 Win Type - Total 0 Types 0/0/0/0/0/0/0/0/0 Lore% 3 Gallery% 12 Achievement% 8 Wizard Run 0 Options --------- ASCII 0 Keyboard 0 Movement Mouse Keybinds 0 Fullscreen 2 Font 18/SmallcapsGlow Map View 76x50 Tactical HUD 1 Map Filters NONE Filters NONE Steam 1 RUN: a841fb22-fef8-405e-8822-e45f7dbca235